bitfinex-derivatives/quotes_BTCF0:USTF0_20250915
["timestamp","ask_amount","ask_price","bid_price","bid_amount"]
[1757974527765,0.32919233,115480.0,115470.0,1.14338233]
[1757974528666,0.32919233,115480.0,115470.0,1.32338233]
[1757974530365,0.32919233,115480.0,115470.0,1.43442233]
[1757974531471,0.32919233,115480.0,115470.0,1.10442233]
[1757974531671,0.32919233,115480.0,115470.0,1.38442233]
[1757974532067,0.32919233,115480.0,115470.0,1.18442233]
[1757974532469,0.32919233,115480.0,115470.0,1.43442233]
[1757974532672,0.32919233,115480.0,115470.0,0.40502233]
[1757974532871,0.03749,115480.0,115470.0,1.10438233]
[1757974533072,0.32919233,115480.0,115470.0,1.38438233]
[1757974533673,0.32919233,115480.0,115470.0,1.10438233]
[1757974533874,0.32919233,115480.0,115470.0,1.43438233]
[1757974534173,0.03749,115480.0,115470.0,1.43438233]
[1757974534568,0.03749,115480.0,115470.0,1.18438233]
[1757974535570,0.03749,115480.0,115470.0,1.38438233]
[1757974535874,0.03749,115480.0,115470.0,1.35188412]
[1757974540175,0.03749,115480.0,115470.0,1.35180412]
[1757974545179,0.03749,115480.0,115470.0,0.56252412]
[1757974545777,0.03749,115480.0,115470.0,1.35176412]
[1757974548382,0.02432,115480.0,115470.0,1.35176412]
[1757974548777,0.02432,115480.0,115470.0,1.18176412]
[1757974549287,0.02432,115480.0,115470.0,1.19176412]
[1757974549782,0.02432,115480.0,115470.0,1.36176412]
[1757974549983,0.02432,115480.0,115470.0,1.18176412]
[1757974550687,0.02432,115480.0,115470.0,0.57252412]
[1757974550984,0.02432,115480.0,115470.0,1.36168412]
[1757974551185,0.02432,115480.0,115470.0,1.18168412]
[1757974551685,0.02432,115480.0,115470.0,1.07168412]
[1757974551887,0.02432,115480.0,115470.0,1.39168412]
[1757974552586,0.02432,115480.0,115470.0,0.60252412]
[1757974552788,0.02432,115480.0,115470.0,1.39168412]
[1757974552988,0.03825,115480.0,115470.0,1.39168412]
[1757974556992,0.03825,115480.0,115470.0,0.60252412]
[1757974557292,0.03825,115480.0,115470.0,1.39160412]
[1757974558086,0.03825,115480.0,115470.0,0.60252412]
[1757974558291,0.03825,115480.0,115470.0,1.39160412]
[1757974558687,0.03825,115480.0,115470.0,0.34332]
[1757974558890,0.03825,115480.0,115470.0,1.1324]
[1757974561190,0.03825,115480.0,115470.0,1.39160412]
[1757974561487,0.03825,115480.0,115470.0,0.60252412]
[1757974561689,0.03825,115480.0,115470.0,1.39152412]
[1757974561891,0.03825,115480.0,115470.0,1.24152412]
[1757974562090,0.03825,115480.0,115470.0,0.45252412]
[1757974562392,0.03825,115480.0,115470.0,1.24152412]
[1757974562593,0.03825,115480.0,115470.0,1.07152412]
[1757974562794,0.002,115480.0,115470.0,1.38059412]
[1757974562995,0.002,115480.0,115470.0,1.08059412]
[1757974563191,0.002,115480.0,115470.0,1.39059412]
[1757974563492,0.002,115480.0,115470.0,0.34239]
[1757974563693,0.002,115480.0,115470.0,1.38152412]
[1757974565295,0.002,115480.0,115470.0,1.44993356]
[1757974565499,0.03888,115480.0,115470.0,1.19072944]
[1757974565797,0.03888,115480.0,115470.0,1.44989356]
[1757974566898,0.03888,115480.0,115470.0,0.66093356]
[1757974567098,0.03888,115480.0,115470.0,1.44989356]
[1757974568198,0.03888,115480.0,115470.0,0.66093356]
[1757974568388,0.03888,115480.0,115470.0,1.44985356]
[1757974570399,0.03888,115480.0,115470.0,0.66093356]
[1757974570601,0.03888,115480.0,115470.0,1.44981356]
[1757974572901,0.03888,115480.0,115470.0,0.66093356]
[1757974573298,0.03888,115480.0,115470.0,1.19056944]
[1757974574398,0.54808412,115480.0,115470.0,0.33332]
[1757974574602,0.54808412,115480.0,115470.0,0.89216]
[1757974574996,0.28888,115480.0,115470.0,1.09216]
[1757974575605,0.28888,115480.0,115470.0,0.89216]
[1757974576400,0.28888,115480.0,115470.0,1.15136412]
[1757974576607,0.28888,115480.0,115470.0,1.16136412]
[1757974576906,0.28888,115480.0,115470.0,1.32136412]
[1757974577405,0.28888,115480.0,115470.0,0.27332]
[1757974577604,0.28888,115480.0,115470.0,1.06212]
[1757974577805,0.28888,115480.0,115470.0,0.94212]
[1757974578002,0.28888,115480.0,115470.0,0.81212]
[1757974578306,0.28888,115480.0,115470.0,0.90212]
[1757974578807,0.28888,115480.0,115470.0,0.11332]
[1757974579003,0.28888,115480.0,115470.0,1.14212]
[1757974581410,0.28888,115480.0,115470.0,0.81212]
[1757974581602,0.28888,115480.0,115470.0,0.89212]
[1757974581803,0.28888,115480.0,115470.0,0.81212]
[1757974582108,0.28888,115480.0,115470.0,1.15212]
[1757974582409,0.28888,115480.0,115470.0,0.90212]
[1757974582604,0.28888,115480.0,115470.0,0.89212]
[1757974583112,0.28888,115480.0,115470.0,1.06212]
[1757974584212,0.28888,115480.0,115470.0,1.32132412]
[1757974584404,0.28888,115480.0,115470.0,1.06212]
[1757974584610,0.28888,115480.0,115470.0,1.32132412]
[1757974595712,0.58048809,115480.0,115470.0,1.35372809]
[1757974596813,0.28888,115480.0,115470.0,1.35372809]
[1757974597018,0.002,115480.0,115470.0,1.90440618]
[1757974597720,0.002,115480.0,115470.0,1.99098698]
[1757974598017,0.002,115480.0,115470.0,1.90440618]
[1757974599022,0.0001,115490.0,115470.0,2.06148602]
[1757974599219,0.0001,115490.0,115480.0,0.31287809]
[1757974599418,0.0001,115500.0,115490.0,0.02561]
[1757974599616,0.03538,115510.0,115500.0,0.02127]
[1757974599819,0.03528,115510.0,115500.0,0.60287809]
[1757974600614,0.01331,115520.0,115500.0,0.89948618]
[1757974600814,0.35180752,115520.0,115510.0,1.10139809]
[1757974601109,0.32692809,115520.0,115510.0,1.10139809]
[1757974601416,0.32692809,115520.0,115510.0,1.20139809]
[1757974601815,0.32692809,115520.0,115510.0,1.19139809]
[1757974602119,0.32692809,115520.0,115510.0,1.10139809]
[1757974602320,0.32692809,115520.0,115510.0,1.18139809]
[1757974602823,0.04032,115520.0,115510.0,1.18139809]
[1757974603013,0.33192809,115520.0,115510.0,1.18139809]
[1757974603419,0.04432,115520.0,115510.0,1.12163269]
[1757974603615,0.04432,115520.0,115510.0,1.43163269]
[1757974604920,0.04432,115520.0,115510.0,1.43151269]
[1757974605818,0.04432,115520.0,115510.0,1.12151269]
[1757974606115,0.33592809,115520.0,115510.0,0.8298646]
[1757974606816,0.33592809,115520.0,115510.0,0.0415046]
[1757974607122,0.33592809,115520.0,115510.0,0.8298646]
[1757974608523,0.33592809,115520.0,115510.0,0.8298246]
[1757974608919,0.33592809,115520.0,115510.0,0.8297846]
[1757974609118,0.33592809,115520.0,115510.0,1.1197846]
[1757974609919,0.33592809,115520.0,115510.0,0.8297846]
[1757974610123,0.33592809,115520.0,115510.0,1.1097846]
[1757974612923,0.33592809,115520.0,115510.0,1.1097446]
[1757974621631,0.33592809,115520.0,115510.0,0.3215046]
[1757974621834,0.33592809,115520.0,115510.0,0.2215046]
[1757974622135,0.33592809,115520.0,115510.0,0.9138246]
[1757974622637,0.33592809,115520.0,115510.0,0.0415046]
[1757974623035,0.33592809,115520.0,115510.0,0.6277846]
[1757974624440,0.33592809,115520.0,115510.0,0.9995046]
[1757974625540,0.33592809,115520.0,115510.0,0.0415046]
[1757974625740,0.33592809,115520.0,115510.0,1.0295046]
[1757974626140,0.36070981,115520.0,115510.0,1.0295046]
[1757974626936,0.36071044,115520.0,115510.0,1.0295046]
[1757974627441,0.36071044,115520.0,115510.0,1.32111269]
[1757974628241,0.36071044,115520.0,115510.0,1.20111269]
[1757974628741,0.36071044,115520.0,115510.0,1.42111269]
[1757974629743,0.36071044,115520.0,115510.0,1.20111269]
[1757974631841,0.36071044,115520.0,115510.0,1.30111269]
[1757974634144,0.36071044,115520.0,115510.0,1.12111269]
[1757974636045,0.36071044,115520.0,115510.0,1.32111269]
[1757974637444,0.36071044,115520.0,115510.0,1.14111269]
[1757974638148,0.36071044,115520.0,115510.0,1.36111269]
[1757974638348,0.36071044,115520.0,115510.0,1.12111269]
[1757974639149,0.36071044,115520.0,115510.0,0.8295046]
[1757974641451,0.36071044,115520.0,115510.0,0.0415046]
[1757974641746,0.61071044,115520.0,115500.0,0.0001]
[1757974641948,0.32683809,115510.0,115500.0,0.48601]
[1757974642147,0.35162044,115510.0,115500.0,0.48591]
[1757974643155,0.32683809,115510.0,115500.0,0.48591]
[1757974643750,0.33083809,115510.0,115500.0,0.48591]
[1757974644450,0.33383809,115510.0,115500.0,0.48591]
[1757974644750,0.35879537,115510.0,115500.0,0.48591]
[1757974646253,0.33383809,115510.0,115500.0,0.48591]
[1757974647152,0.33383809,115510.0,115500.0,0.75591]
[1757974647352,0.33383809,115510.0,115500.0,1.04751809]
[1757974653058,0.04223,115510.0,115500.0,1.04751809]
[1757974653258,0.33383809,115510.0,115500.0,0.77751809]
[1757974653560,0.33383809,115510.0,115500.0,0.99751809]
[1757974654363,0.33383809,115510.0,115500.0,0.86751809]
[1757974655761,0.04223,115510.0,115500.0,0.57591]
[1757974660757,0.04223,115510.0,115500.0,0.48591]
[1757974660963,0.04223,115510.0,115500.0,0.70591]
[1757974665264,0.30132864,115510.0,115500.0,0.70591]
[1757974667569,0.04223,115510.0,115500.0,0.70591]
[1757974670269,0.30132864,115510.0,115500.0,0.70591]
[1757974674763,0.30132864,115510.0,115500.0,0.48591]
[1757974675574,0.30132864,115510.0,115500.0,0.70591]
[1757974676867,0.30132864,115510.0,115500.0,0.48591]
[1757974677072,0.30132864,115510.0,115500.0,0.76591]
[1757974677977,0.04223,115510.0,115500.0,0.76591]
[1757974678973,0.30132864,115510.0,115500.0,0.76591]
[1757974680172,0.04223,115510.0,115500.0,0.86500864]
[1757974680471,0.007,115510.0,115500.0,1.32500864]
[1757974681270,0.007,115510.0,115500.0,0.99500864]
[1757974681576,0.007,115510.0,115500.0,1.09500864]
[1757974681768,0.007,115510.0,115500.0,1.31500864]
[1757974682873,0.007,115510.0,115500.0,1.08500864]
[1757974683676,0.007,115510.0,115500.0,0.99500864]
[1757974683974,0.007,115510.0,115500.0,1.30500864]
[1757974688072,0.007,115510.0,115500.0,1.05500864]
[1757974692978,0.007,115510.0,115500.0,0.59096864]
[1757974693180,0.007,115510.0,115500.0,1.37812864]
[1757974693973,0.007,115510.0,115500.0,1.17812864]
[1757974696281,0.007,115510.0,115500.0,1.39812864]
[1757974696782,0.007,115510.0,115500.0,0.61096864]
[1757974696982,0.007,115510.0,115500.0,1.39808864]
[1757974699282,0.007,115510.0,115500.0,1.15808864]
[1757974700182,0.007,115510.0,115500.0,0.58096864]
[1757974700382,0.007,115510.0,115500.0,1.36804864]
[1757974700980,0.007,115510.0,115500.0,1.36800864]
[1757974709185,0.007,115510.0,115500.0,0.58096864]
[1757974709382,0.0431,115510.0,115500.0,1.10879]
[1757974710186,0.30219864,115510.0,115500.0,0.32187]
[1757974710385,0.30219864,115510.0,115500.0,1.10879]
[1757974710586,0.55219864,115510.0,115500.0,0.02187]
[1757974710886,0.55219864,115510.0,115500.0,0.80879]
[1757974712588,0.55219864,115510.0,115500.0,0.02187]
[1757974712789,0.55219864,115510.0,115500.0,0.80879]
[1757974715089,0.55219864,115510.0,115500.0,1.09879]
[1757974716991,0.2931,115510.0,115500.0,1.09879]
[1757974717192,0.55219864,115510.0,115500.0,1.09879]
[1757974717795,0.58461954,115510.0,115500.0,1.09879]
[1757974719293,0.33461954,115510.0,115500.0,1.09879]
[1757974724001,0.33461954,115510.0,115500.0,0.98879]
[1757974727198,0.33461954,115510.0,115500.0,0.99859]
[1757974727799,0.33461954,115510.0,115500.0,0.02187]
[1757974728006,0.0361,115500.0,115490.0,0.0001]
[1757974728204,0.61913908,115500.0,115490.0,0.75436]
[1757974728699,0.61913908,115500.0,115490.0,0.78672]
[1757974728900,0.64445129,115500.0,115490.0,0.78672]
[1757974729104,0.01394,115490.0,115480.0,0.09232]
[1757974729404,0.32761954,115490.0,115480.0,1.21894]
[1757974730603,0.89443823,115490.0,115480.0,0.071]
[1757974730802,0.89543823,115490.0,115480.0,0.071]
[1757974731101,0.60491869,115490.0,115480.0,0.071]
[1757974731706,0.61347968,115490.0,115480.0,0.071]
[1757974732000,0.68188411,115490.0,115480.0,0.071]
[1757974740606,1.46864411,115490.0,115480.0,0.071]
[1757974742812,0.43188411,115490.0,115480.0,0.0936]
[1757974744524,0.43188411,115490.0,115480.0,0.0226]
[1757974749019,0.42332312,115490.0,115480.0,0.0226]
[1757974751120,0.13180358,115490.0,115480.0,0.3026]
[1757974751324,0.06339915,115490.0,115480.0,0.64411954]
[1757974751621,0.32961954,115490.0,115480.0,0.64411954]
[1757974751917,0.002,115490.0,115480.0,0.76411954]
[1757974752121,0.002,115490.0,115480.0,0.77318954]
[1757974753126,0.002,115490.0,115480.0,1.55986954]
[1757974753821,0.002,115490.0,115480.0,1.56858282]
[1757974755026,0.002,115490.0,115480.0,1.55079954]
[1757974755027,0.03731,115490.0,115480.0,1.55079954]
[1757974757518,0.03731,115490.0,115480.0,0.76411954]
[1757974757724,0.03731,115490.0,115480.0,1.55075954]
[1757974759233,0.03731,115490.0,115480.0,0.76411954]
[1757974759423,0.32882954,115490.0,115480.0,1.55071954]
[1757974760224,0.03731,115490.0,115480.0,1.55071954]
[1757974760425,0.32882954,115490.0,115480.0,1.55071954]
[1757974761927,0.03731,115490.0,115480.0,1.55071954]
[1757974764627,0.03731,115490.0,115480.0,1.55063954]
[1757974764820,0.32882954,115490.0,115480.0,0.76411954]
[1757974765024,0.32882954,115490.0,115480.0,1.55063954]
[1757974768430,0.32882954,115490.0,115480.0,0.76411954]
[1757974768632,0.32882954,115490.0,115480.0,1.55059954]
[1757974770938,0.32882954,115490.0,115480.0,0.4726]
[1757974771234,0.32882954,115490.0,115480.0,1.55055954]
[1757974772736,0.03731,115490.0,115480.0,1.55055954]
[1757974772934,0.32882954,115490.0,115480.0,1.55055954]
[1757974775137,0.32882954,115490.0,115480.0,0.51411954]
[1757974775336,0.32882954,115490.0,115480.0,1.009]
[1757974775832,0.32882954,115490.0,115480.0,1.30051954]
[1757974776437,0.32882954,115490.0,115480.0,1.19051954]
[1757974776637,0.32882954,115490.0,115480.0,1.10051954]
[1757974777032,0.32882954,115490.0,115480.0,1.44051954]
[1757974777337,0.32882954,115490.0,115480.0,1.20051954]
[1757974777632,0.32882954,115490.0,115480.0,1.10051954]
[1757974777836,0.32882954,115490.0,115480.0,1.31051954]
[1757974778442,0.32882954,115490.0,115480.0,1.10051954]
[1757974778641,0.32882954,115490.0,115480.0,1.42051954]
[1757974779238,0.32882954,115490.0,115480.0,1.20051954]
[1757974779446,0.32882954,115490.0,115480.0,1.10051954]
[1757974779744,0.29650814,115490.0,115480.0,0.809]
[1757974780042,0.29650814,115490.0,115480.0,1.129]
[1757974780839,0.29650814,115490.0,115480.0,0.889]
[1757974781042,0.29650814,115490.0,115480.0,0.2926]
[1757974781243,0.29650814,115490.0,115480.0,1.07896]
[1757974781740,0.29650814,115490.0,115480.0,0.80896]
[1757974781940,0.29650814,115490.0,115480.0,1.14896]
[1757974782443,0.03731,115490.0,115480.0,1.14896]
[1757974784038,0.29650814,115490.0,115480.0,1.14896]
[1757974784236,0.29650814,115490.0,115480.0,1.07896]
[1757974784939,0.002,115490.0,115480.0,1.06815814]
[1757974785143,0.002,115490.0,115480.0,1.40815814]
[1757974787043,0.002,115490.0,115480.0,1.14896]
[1757974787239,0.01585,115490.0,115480.0,1.14896]
[1757974789042,0.002,115490.0,115480.0,0.93896]
[1757974789344,0.02388,115490.0,115480.0,0.93896]
[1757974790240,0.03773,115490.0,115480.0,0.93896]
[1757974790443,0.03773,115490.0,115480.0,1.14888]
[1757974790637,0.03773,115490.0,115480.0,1.08888]
[1757974798252,0.03773,115490.0,115480.0,1.0888]
[1757974798447,0.29692814,115490.0,115480.0,1.0888]
[1757974801461,0.29692814,115490.0,115480.0,0.3026]
[1757974801753,0.29692814,115490.0,115480.0,0.9988]
[1757974802958,0.03773,115490.0,115480.0,0.9988]
[1757974803653,0.03773,115490.0,115480.0,0.99876]
[1757974805156,0.29692814,115490.0,115480.0,1.06976]
[1757974806352,0.03773,115490.0,115480.0,1.06976]
[1757974809655,0.002,115490.0,115480.0,1.57895814]
[1757974810859,0.002,115490.0,115480.0,1.65913814]
[1757974814362,0.002,115490.0,115480.0,1.76590284]
[1757974814561,0.08397213,115530.0,115490.0,0.109457]
[1757974814760,0.13203559,115530.0,115520.0,0.02289]
[1757974814960,0.39123373,115530.0,115520.0,0.02289]
[1757974815265,0.13203559,115530.0,115520.0,0.02289]
[1757974815462,0.39123373,115530.0,115520.0,0.02289]
[1757974815965,0.3209216,115530.0,115520.0,0.11289]
[1757974816160,0.06772346,115530.0,115520.0,0.02389]
[1757974816366,0.06772346,115530.0,115520.0,0.12389]
[1757974816665,0.31772346,115530.0,115520.0,1.11993]
[1757974816864,0.29219,115530.0,115520.0,0.89993]
[1757974817064,0.29219,115530.0,115520.0,0.90993]
[1757974817265,0.29419,115530.0,115520.0,1.06912814]
[1757974817463,0.29419,115530.0,115520.0,0.28308814]
[1757974817665,0.04419,115530.0,115520.0,1.15912814]
[1757974817857,0.04419,115530.0,115520.0,0.89993]
[1757974818054,0.04219,115530.0,115520.0,0.89993]
[1757974818264,0.04619,115530.0,115520.0,0.89993]
[1757974818768,0.04619,115530.0,115520.0,1.20091]
[1757974818970,0.04619,115530.0,115520.0,0.98091]
[1757974819265,0.04619,115530.0,115520.0,1.22091]
[1757974819468,0.04619,115530.0,115520.0,1.22087]
[1757974819667,0.04619,115530.0,115520.0,1.16087]
[1757974819868,0.04619,115530.0,115520.0,0.88087]
[1757974820171,0.04619,115530.0,115520.0,0.38487]
[1757974820371,0.04619,115530.0,115520.0,1.17083]
[1757974821866,0.04619,115530.0,115520.0,0.38487]
[1757974822066,0.04619,115530.0,115520.0,1.17083]
[1757974822768,0.04619,115530.0,115520.0,0.38487]
[1757974822971,0.04619,115530.0,115520.0,1.18079]
[1757974823371,0.04619,115530.0,115520.0,0.39487]
[1757974823573,0.04619,115530.0,115520.0,1.18079]
[1757974826970,0.04619,115530.0,115520.0,0.39487]
[1757974827167,0.04619,115530.0,115520.0,1.18075]
[1757974828371,0.04619,115530.0,115520.0,1.18071]
[1757974829071,0.04619,115530.0,115520.0,0.39487]
[1757974829272,0.04619,115530.0,115520.0,1.18071]
[1757974829467,0.30538814,115530.0,115520.0,1.18071]
[1757974831573,0.04619,115530.0,115520.0,1.18071]
[1757974835375,0.30538814,115530.0,115520.0,1.18071]
[1757974837377,0.04619,115530.0,115520.0,1.18071]
[1757974837571,0.04619,115530.0,115520.0,0.39487]
[1757974837771,0.04619,115530.0,115520.0,1.18063]
[1757974838676,0.30538814,115530.0,115520.0,1.18063]
[1757974839779,0.33760113,115530.0,115520.0,1.47204113]
[1757974840782,0.04619,115530.0,115520.0,1.47204113]
[1757974840974,0.33760113,115530.0,115520.0,1.47204113]
[1757974842280,0.36308447,115530.0,115520.0,1.47204113]
[1757974845379,0.36308447,115530.0,115520.0,0.47502]
[1757974845578,0.9044956,115530.0,115520.0,0.93781]
[1757974845780,0.9044956,115530.0,115520.0,0.95951]
[1757974848690,0.9044956,115530.0,115520.0,1.26951]
[1757974848878,0.61308447,115530.0,115520.0,0.95951]
[1757974849083,0.61308447,115530.0,115520.0,1.16951]
[1757974851393,0.9044956,115530.0,115520.0,0.95951]
[1757974853291,0.90452451,115530.0,115520.0,0.95951]
[1757974855001,0.90452451,115530.0,115520.0,0.17383]
[1757974855192,0.90452451,115530.0,115520.0,0.95947]
[1757974862402,0.90452451,115530.0,115520.0,0.17383]
[1757974862602,0.90452451,115530.0,115520.0,0.95943]
[1757974875909,0.90452451,115530.0,115520.0,1.24943]
[1757974876313,0.90452451,115530.0,115520.0,0.95943]
[1757974876908,0.90452451,115530.0,115520.0,1.24943]
[1757974889520,0.90452451,115530.0,115520.0,0.17383]
[1757974889727,0.90452451,115530.0,115520.0,0.95927]
[1757974898022,0.90452451,115530.0,115520.0,0.95919]
[1757974899524,0.65452451,115530.0,115520.0,0.95919]
[1757974899727,0.33078296,115530.0,115520.0,0.95919]
[1757974908237,0.33078296,115530.0,115520.0,0.17383]
[1757974908439,0.33078296,115530.0,115520.0,0.87223]
[1757974909534,0.33127274,115530.0,115520.0,0.87223]
[1757974910842,0.33127274,115530.0,115520.0,0.95907]
[1757974923254,0.33127274,115530.0,115520.0,0.17383]
[1757974923452,0.33127274,115530.0,115520.0,0.95895]
[1757974923648,0.33127274,115530.0,115520.0,0.17383]
[1757974923861,0.33127274,115530.0,115520.0,0.15213]
[1757974923862,0.84035345,115530.0,115520.0,0.15213]
[1757974924655,0.58127274,115530.0,115520.0,0.15213]
[1757974931964,0.84035345,115530.0,115520.0,0.15213]
[1757974932156,0.59035345,115530.0,115520.0,0.15213]
[1757974932356,0.84035345,115530.0,115520.0,0.15213]
[1757974932660,0.84035345,115530.0,115520.0,0.08115]
[1757974934064,1.62543345,115530.0,115520.0,0.08115]
[1757974940068,0.84035345,115530.0,115520.0,0.08115]
[1757974940269,1.62543345,115530.0,115520.0,0.08115]
[1757974945273,1.37543345,115530.0,115520.0,0.08115]
[1757974945673,0.59035345,115530.0,115520.0,0.08115]
[1757974945976,1.37539345,115530.0,115520.0,0.08115]
[1757974948769,0.01332,115520.0,115510.0,0.07098]
[1757974948971,0.58030345,115520.0,115510.0,0.07098]
[1757974949873,0.58430345,115520.0,115510.0,0.07098]
[1757974950674,0.58930345,115520.0,115510.0,0.07098]
[1757974954670,0.63606096,115520.0,115510.0,0.07098]
[1757974954877,0.29522071,115500.0,115490.0,0.0001]
[1757974955176,1.10622274,115500.0,115490.0,0.0001]
[1757974956074,1.11122274,115500.0,115490.0,0.0001]
[1757974956477,1.1200758,115500.0,115490.0,0.0001]
[1757974956672,0.86099509,115500.0,115490.0,0.0001]
[1757974956878,1.1200758,115500.0,115490.0,0.0001]
[1757974958370,1.18765032,115500.0,115490.0,0.0001]
[1757974959777,1.51195327,115500.0,115490.0,0.0001]
[1757974961880,0.72695327,115500.0,115490.0,0.0001]
[1757974962081,1.51195327,115500.0,115490.0,0.0001]
[1757974967180,0.72695327,115500.0,115490.0,0.0001]
[1757974967486,1.51195327,115500.0,115490.0,0.0001]
[1757974968386,0.72695327,115500.0,115490.0,0.0001]
[1757974968685,1.51195327,115500.0,115490.0,0.0001]
[1757974974192,0.72695327,115500.0,115490.0,0.0001]
[1757974974490,1.51187327,115500.0,115490.0,0.0001]
[1757974974690,0.72695327,115500.0,115490.0,0.0001]
[1757974975091,1.51187327,115500.0,115490.0,0.0001]
[1757974977090,0.72695327,115500.0,115490.0,0.0001]
[1757974977290,1.51187327,115500.0,115490.0,0.0001]
[1757974977492,0.72695327,115500.0,115490.0,0.0001]
[1757974977692,1.51187327,115500.0,115490.0,0.0001]
[1757974982889,1.51183327,115500.0,115490.0,0.0001]
[1757974983191,0.72695327,115500.0,115490.0,0.0001]
[1757974983493,1.51183327,115500.0,115490.0,0.0001]
[1757974983688,1.51183327,115500.0,115490.0,0.02191]
[1757974999210,1.51183327,115500.0,115490.0,0.0001]
[1757975001019,1.8035251,115500.0,115490.0,0.0001]
[1757975001222,0.03614,115490.0,115480.0,0.00433]
[1757975001514,0.64552569,115490.0,115480.0,0.00433]
[1757975002606,0.64652569,115490.0,115480.0,0.00433]
[1757975003619,0.64852569,115490.0,115480.0,0.00433]
[1757975007621,0.62252366,115490.0,115480.0,0.00433]
[1757975007921,0.64873894,115490.0,115480.0,0.00433]
[1757975009227,0.61894366,115480.0,115470.0,0.06571]
[1757975009425,1.42983894,115480.0,115470.0,0.06571]
[1757975011823,0.64615894,115480.0,115470.0,0.06571]
[1757975012026,1.43083894,115480.0,115470.0,0.06571]
[1757975012217,0.64615894,115480.0,115470.0,0.06571]
[1757975012418,1.42983894,115480.0,115470.0,0.06571]
[1757975012626,1.43283894,115480.0,115470.0,0.06571]
[1757975013322,0.64815894,115480.0,115470.0,0.06571]
[1757975013515,1.43283894,115480.0,115470.0,0.06571]
[1757975013716,0.64815894,115480.0,115470.0,0.08755]
[1757975013916,1.43283894,115480.0,115470.0,0.08755]
[1757975014127,0.64815894,115480.0,115470.0,0.08755]
[1757975014519,1.43283894,115480.0,115470.0,0.08755]
[1757975015819,0.64815894,115480.0,115470.0,0.08755]
[1757975016025,0.64815894,115480.0,115470.0,0.06571]
[1757975016624,1.43283894,115480.0,115470.0,0.06571]
[1757975017027,0.64815894,115480.0,115470.0,0.06571]
[1757975017527,1.43283894,115480.0,115470.0,0.06571]
[1757975021733,1.36816324,115480.0,115470.0,0.06571]
[1757975022032,1.36816324,115480.0,115470.0,0.08755]
[1757975022329,1.36816324,115480.0,115470.0,0.06571]
[1757975022931,0.58348324,115480.0,115470.0,0.06571]
[1757975023132,1.36816324,115480.0,115470.0,0.06571]
[1757975031541,1.36816324,115480.0,115460.0,0.0001]
[1757975031743,0.29491398,115470.0,115460.0,0.02194]
[1757975031940,0.32112926,115470.0,115460.0,0.02184]
[1757975034446,0.32212926,115470.0,115460.0,0.02184]
[1757975051963,0.03401,115460.0,115450.0,0.0001]
[1757975052162,0.03401,115460.0,115420.0,0.02065362]
[1757975052163,0.03401,115430.0,115420.0,0.04260362]
[1757975052365,0.29336398,115430.0,115420.0,0.12260362]
[1757975052569,0.29336398,115430.0,115420.0,0.21260362]
[1757975053372,0.29236398,115430.0,115420.0,0.32260362]
[1757975053576,0.29236398,115430.0,115420.0,0.04260362]
[1757975053882,0.29136398,115430.0,115420.0,0.04260362]
[1757975054174,0.29136398,115430.0,115420.0,0.35260362]
[1757975054367,0.29136398,115430.0,115420.0,0.35560362]
[1757975054676,0.29136398,115430.0,115420.0,0.35660362]
[1757975055978,0.29136398,115430.0,115420.0,0.35360362]
[1757975061176,0.29136398,115430.0,115420.0,0.08360362]
[1757975063282,0.29136398,115430.0,115420.0,0.31360362]
[1757975066582,0.29136398,115430.0,115420.0,0.10360362]
[1757975066784,0.03201,115430.0,115420.0,0.19360362]
[1757975066986,0.29136398,115430.0,115420.0,0.19360362]
[1757975080486,0.29136398,115430.0,115420.0,0.32360362]
[1757975080883,0.29136398,115430.0,115420.0,0.13360362]
[1757975083799,0.32391515,115430.0,115420.0,0.33360362]
[1757975083998,0.32391515,115430.0,115420.0,0.04360362]
[1757975086098,0.32391515,115430.0,115420.0,0.22360362]
[1757975087901,0.32391515,115430.0,115420.0,0.04360362]
[1757975096708,0.32391515,115430.0,115420.0,0.26360362]
[1757975100308,0.32391515,115430.0,115420.0,0.04360362]
[1757975100511,0.32391515,115430.0,115420.0,0.30360362]
[1757975106013,0.32391515,115430.0,115420.0,0.14360362]
[1757975109412,0.013,115440.0,115420.0,0.90215877]
[1757975109613,0.03405,115450.0,115440.0,0.02145]
[1757975109809,0.32595515,115450.0,115440.0,0.02145]
[1757975110013,0.32595515,115450.0,115440.0,0.13145]
[1757975111615,0.32695515,115450.0,115440.0,0.29145]
[1757975111915,0.32895515,115450.0,115440.0,0.29145]
[1757975112813,0.32695515,115450.0,115440.0,0.02145]
[1757975113015,0.32795515,115450.0,115440.0,0.02145]
[1757975113410,0.32795515,115450.0,115440.0,0.31335515]
[1757975113608,0.002,115450.0,115440.0,0.49835515]
[1757975113814,0.002,115450.0,115440.0,0.74835515]
[1757975114816,0.001,115450.0,115440.0,0.74835515]
[1757975115018,0.30500515,115460.0,115440.0,0.74835515]
[1757975115317,0.32605515,115460.0,115450.0,1.07638515]
[1757975116021,0.0001,115460.0,115450.0,1.07638515]
[1757975116218,0.0001,115460.0,115450.0,1.66303515]
[1757975116917,0.0001,115460.0,115450.0,1.67157927]
[1757975118420,0.0011,115460.0,115450.0,1.67157927]
[1757975119010,0.0011,115460.0,115450.0,1.37967412]
[1757975119215,0.0001,115460.0,115450.0,1.67157927]
[1757975129426,0.0001,115460.0,115450.0,0.88709927]
[1757975129724,0.0001,115460.0,115450.0,1.69441927]
[1757975129930,0.0001,115460.0,115450.0,0.91013927]
[1757975130228,0.0001,115460.0,115450.0,1.69441927]
[1757975130424,0.0001,115460.0,115450.0,0.91013927]
[1757975130630,0.0001,115460.0,115450.0,1.69441927]
[1757975133725,0.0001,115460.0,115450.0,1.53101567]
[1757975136028,0.0001,115460.0,115450.0,0.74673567]
[1757975136228,0.0001,115460.0,115450.0,1.53097567]
[1757975137129,0.0001,115460.0,115450.0,0.74673567]
[1757975137329,0.0001,115460.0,115450.0,1.53097567]
[1757975137630,0.0001,115460.0,115450.0,0.74673567]
[1757975137936,0.0001,115460.0,115450.0,1.53097567]
[1757975138138,0.0001,115460.0,115450.0,0.74673567]
[1757975138732,0.0001,115460.0,115450.0,1.53097567]
[1757975138934,0.0001,115460.0,115450.0,0.74673567]
[1757975139331,0.0001,115460.0,115450.0,0.66013927]